Cogmind - Beta 10.2 @@@ ROGUE MODE // 2021.04.03 @ 05:09:24 Player: Rainynight Result: Destroyed by as-68529 with Assembled Blade Performance ------------- Evolutions (0) 0 Regions Visited (2) 400 Robots Destroyed (26) 130 Value Destroyed (525) 525 Prototype IDs (0) 0 Alien Tech Used (0) 0 Bonus (0) 0 TOTAL SCORE: 1055 Bonus ------- None Cogmind --------- Core Integrity 0/250 Matter 298/300 Energy 265/265 System Corruption 0% Temperature Cool (4) Movement Rolling (100) Ox2 Location -10/Mines Parts ------- > --- POWER (1) -------- Improved Ion Engine > --- PROPULSION (2) --- Light Treads Wheel > --- UTILITY (2) ------ Large Storage Unit Light Armor Plating > --- WEAPON (2) ------- Light Assault Rifle Light Assault Rifle > --- INVENTORY (10) --- Light Ion Engine Light Treads Heat Sink Large Storage Unit Terrain Scanner Terrain Scan Processor Targeting Computer Light Assault Rifle Grenade Launcher Peak State ------------ > --- POWER ------------ Light Nuclear Core > --- PROPULSION ------- Light Treads Compact Wheel > --- UTILITY ---------- Large Storage Unit Signal Interpreter > --- WEAPON ----------- Assault Rifle Light Assault Rifle > --- INVENTORY -------- Light Ion Engine Light Treads Light Treads Wheel Large Storage Unit Terrain Scanner Terrain Scan Processor Light Armor Plating Small Laser Grenade Launcher [Rating: 10] Favorites ----------- Power Light Ion Engine Engine Light Ion Engine Power Core Light Nuclear Core Propulsion Light Treads Treads Light Treads Leg Aluminum Leg Wheel Compact Wheel Utility Large Storage Unit Storage Large Storage Unit Processor Signal Interpreter Protection Light Armor Plating Weapon Light Assault Rifle Energy Gun EM Pulse Gun Ballistic Gun Light Assault Rifle Launcher Grenade Launcher Build | -11 -10 -10 ------- Run | Scr Mat Min Slots Evolved . | . . . Power . | . . . Propulsion . | . . . Utility . | . . . Weapon . | . . . Parts Attached 33 | 4 9 20 Power 4 | . 1 3 Engine 3 | . 1 2 Core 1 | . . 1 Reactor . | . . . Propulsion 8 | 2 3 3 Treads 4 | 1 1 2 Leg . | . . . Wheel 4 | 1 2 1 Hover . | . . . Flight . | . . . Utility 4 | . 2 2 Device . | . . . Storage 1 | . 1 . Processor 1 | . 1 . Hackware . | . . . Protection 2 | . . 2 Artifact . | . . . Weapon 17 | 2 3 12 Energy Gun 2 | 1 . 1 Energy Cannon . | . . . Ballistic Gun 9 | 1 2 6 Ballistic Cannon . | . . . Launcher 6 | . 1 5 Special Weapon . | . . . Impact Weapon . | . . . Slashing Weapon . | . . . Piercing Weapon . | . . . Special Melee Weapon . | . . . Unidentified Prototypes . | . . . Parts Lost 7 | . . 7 Power 1 | . . 1 Propulsion 2 | . . 2 Utility 1 | . . 1 Weapon 3 | . . 3 Highest Loss Streak 6 | . . 6 Average Slot Usage (%) 97 | . 97 96 Engine 10 | . 14 9 Core 2 | . . 3 Treads 14 | . 14 14 Wheel 13 | . 14 12 Storage 14 | . 14 14 Processor 8 | . 12 7 Protection 4 | . . 6 Energy Gun 1 | . 3 . Ballistic Gun 23 | . 19 25 Launcher 1 | . 4 . Naked Turns . | . . . Heaviest Build 30 | 11 23 30 Greatest Support 40 | 20 20 40 Greatest Overweight (x) 2 | . 2 2 Average Overweight (x) 1 | . 1 1 Largest Inventory Capacity 10 | 6 10 10 Average Capacity 9 | 6 9 10 Most Carried 10 | 6 10 10 Average Carried 9 | 6 8 9 Final Capacity 10 | 6 10 10 Final Carried 10 | 6 10 9 Class Distribution -------------------- 92% | Mutant 7% | Scavenger-Mutant Dominant Class ---------------- Mutant | -10/Materials Mutant | -10/Mines Resources | -11 -10 -10 ----------- Run | Scr Mat Min Matter Collected 713 | 200 64 449 Remotely . | . . . Salvage Created 568 | . 169 399 Parts 46 | . 18 28 Haulers Intercepted . | . . . Recyclers Shooed . | . . . Parts Field Recycled . | . . . Retrieved Matter . | . . . Parts Self-Destructed . | . . . Prevented . | . . . Kills | -11 -10 -10 ------- Run | Scr Mat Min Combat Hostiles Destroyed 21 | . 4 17 Guns 9 | . 1 8 AOE 12 | . 3 9 Classes Destroyed 6 | . 5 1 Worker 2 | . 2 . Builder 2 | . 2 . Watcher 1 | . 1 . Swarmer 12 | . 3 9 Grunt 7 | . 1 6 Sentry 2 | . . 2 Best Kill Streak 5 | . 4 5 Combat Bots Only 5 | . 2 5 Max Kills in Single Turn 4 | . 4 3 Gunslinging . | . . . Exploded 3 | . 2 3 Melee . | . . . Uniques/NPCs Destroyed . | . . . Combat | -11 -10 -10 -------- Run | Scr Mat Min Damage Taken 1422 | . 115 1307 Core 252 | . . 252 Absorbed by Shields . | . . . Core Remaining (%) 100 | 100 . . Volleys Fired 59 | . 12 47 Largest 2 | . 2 2 Hottest 70 | . 60 70 Shots Fired 112 | . 24 88 Gun 104 | . 22 82 Cannon . | . . . Launcher 8 | . 2 6 Special . | . . . Kinetic 90 | . 17 73 Thermal 9 | . . 9 Explosive 8 | . 2 6 Electromagnetic 5 | . 5 . Robot Hit Streak 13 | . 6 13 Robot Miss Streak 4 | . 4 3 Penetration Max . | . . . Secondary Targets 1 | . . 1 Max Gunslinging Chain 1 | . . 1 Shots Hit Robots 75 | . 15 60 Core Hits 46 | . 11 35 Critical Hits . | . . . Critical Kills . | . . . Critical Parts Destroyed . | . . . Melee Attacks . | . . . Impact . | . . . Slashing . | . . . Piercing . | . . . Sneak Attacks . | . . . Combat Hostiles . | . . . Follow-up Attacks . | . . . Damage Inflicted 1405 | . 371 1034 Guns 730 | . 150 580 Cannons . | . . . Explosions 675 | . 221 454 Melee . | . . . Ramming . | . . . Kinetic 610 | . 130 480 Thermal 148 | . 48 100 Explosive 627 | . 173 454 Electromagnetic 20 | . 20 . Impact . | . . . Slashing . | . . . Piercing . | . . . Highest Corruption . | . . . Average Corruption . | . . . Corruption Purged . | . . . Overload Shots . | . . . Overflow Damage . | . . . Projectiles . | . . . Explosions . | . . . Melee . | . . . Knockbacks . | . . . Impact . | . . . Kinetic . | . . . Secondary . | . . . Self-Inflicted Damage 55 | . 40 15 Shots 2 | . 1 1 Rammed . | . . . Targets Rammed . | . . . Kicked . | . . . Crushed . | . . . Highest Temperature 63 | . 10 63 Average Temperature 20 | . 7 20 Received Heat Transfer 521 | . 18 503 Siege Activations . | . . . Robots Corrupted . | . . . Combat Hostiles . | . . . Parts Fried . | . . . Impact Corruptions . | . . . Robots Melted . | . . . Combat Hostiles . | . . . Parts Melted . | . . . Heat Transferred 275 | . 50 225 Parts Sabotaged . | . . . Parts Stolen . | . . . Parts Stripped . | . . . Power Chain Reactions 1 | . 1 . Missiles Intercepted . | . . . Alert | -11 -10 -10 ------- Run | Scr Mat Min Peak Influence 259 | . 153 259 Initial 59 | . . 59 Average 157 | . 99 183 Maximum Alert Level 1 | . . 1 Low Security (%) 82 | 100 100 74 Level 1 17 | . . 25 Level 2 . | . . . Level 3 . | . . . Level 4 . | . . . Level 5 . | . . . High Security . | . . . Max Security . | . . . Squads Dispatched 1 | . 1 . Investigation . | . . . Extermination . | . . . Reinforcement 1 | . 1 . Assault . | . . . Garrison . | . . . Intercept . | . . . Construction Impeded . | . . . Haulers Reinforced . | . . . Stealth | -11 -10 -10 --------- Run | Scr Mat Min Distress Signals 1 | . 1 . Communications Jammed . | . . . Distress Signals . | . . . Times Spotted 38 | . 9 29 Peak Tracking Total 20 | . 4 20 Tactical Retreats 1 | . . 1 Traps | -11 -10 -10 ------- Run | Scr Mat Min Traps Triggered . | . . . Indirectly . | . . . Trap Hack Attempts . | . . . Triggered . | . . . Disarmed . | . . . Reprogrammed . | . . . Reused . | . . . Traps Extracted . | . . . Installed . | . . . Triggered . | . . . Machines | -11 -10 -10 ---------- Run | Scr Mat Min Machines Disabled 1 | . . 1 Max in Single Turn 1 | . . 1 Machines Sabotaged . | . . . Garrisons Compromised . | . . . Overloaded Fab Kills . | . . . Fab Network Shutdowns . | . . . Hacking | -11 -10 -10 --------- Run | Scr Mat Min Machines Accessed 3 | . 3 . Terminals 3 | . 3 . Fabricators . | . . . Repair Stations . | . . . Recycling Units . | . . . Scanalyzers . | . . . Garrison Access . | . . . Total Hacks 11 | . 11 . Successful 5 | . 5 . Failed 6 | . 6 . Catastrophic . | . . . Database Lockouts . | . . . Manual 6 | . 6 . Terminals 11 | . 11 . Fabricators . | . . . Repair Stations . | . . . Recycling Units . | . . . Scanalyzers . | . . . Garrison Access . | . . . Terminal Hacks 1 | . 1 . Branch Access Points 1 | . 1 . Fabricator Hacks . | . . . Repair Station Hacks . | . . . Recycling Unit Hacks . | . . . Scanalyzer . | . . . Garrison Access Hacks . | . . . Unauthorized Hacks 4 | . 4 . Terminals 4 | . 4 . Track 2 | . 2 . Botnet 2 | . 2 . Fabricators . | . . . Repair Stations . | . . . Recycling Units . | . . . Scanalyzers . | . . . Garrison Access . | . . . Data Cores Recovered . | . . . Used . | . . . Hacking Detections 3 | . 3 . Full Trace Events 1 | . 1 . Feedback Events . | . . . Feedback Blocked . | . . . Robot Schematics Acquired . | . . . Robots Built . | . . . Matter . | . . . Time . | . . . Total Robot Build Rating . | . . . Part Schematics Acquired . | . . . Parts Built . | . . . Matter . | . . . Time . | . . . Total Part Build Rating . | . . . Parts Repaired . | . . . Time . | . . . Parts Recycled . | . . . Recycled Matter . | . . . Retrieved Matter . | . . . Retrieved Components . | . . . Parts Scanalyzed . | . . . Part Schematics Acquired . | . . . Parts Damaged . | . . . Bothacking | -11 -10 -10 ------------ Run | Scr Mat Min Used RIF Installer . | . . . Robots Hacked . | . . . Non-combat . | . . . Combat . | . . . Robot Hacks Applied . | . . . Relay Couplers Released . | . . . Robots Rewired . | . . . Allies Hacked . | . . . Hacks Repelled . | . . . Allies | -11 -10 -10 -------- Run | Scr Mat Min Total Allies . | . . . Largest Group . | . . . Highest-Rated Group . | . . . Highest-Rated Ally . | . . . Total Orders . | . . . Ally Attacks . | . . . Total Damage . | . . . Kills . | . . . Allies Corrupted . | . . . Allies Melted . | . . . Intel | -11 -10 -10 ------- Run | Scr Mat Min Robot Analysis Total . | . . . Derelict Logs Recovered 1 | . . 1 Drone Launches . | . . . Drone Recoveries . | . . . Exploration | -11 -10 -10 ------------- Run | Scr Mat Min Turns Passed 960 | 6 288 666 Spaces Moved 604 | 1 216 387 Core . | . . . Treads 113 | 1 12 100 Legs . | . . . Wheels 491 | . 204 287 Hover . | . . . Flight . | . . . Fastest Speed 100 | 160 100 100 Average Speed 118 | 160 106 125 Slowest Speed 180 | 160 160 180 Overloaded Moves . | . . . Propulsion Burnouts . | . . . Robots Hopped . | . . . Cave-ins Triggered . | . . . Exploration Rate (%) 36 | 2 44 63 Regions Visited 2 Branch Regions 1 Pre-discovered Areas 1 | . . 1 Known Exits Taken 1 | . 1 . Unknown Exits Taken 1 | 1 . . Scrap Searched 1 | . . 1 Spaces Dug 8 | . . 8 Terrain Destroyed 65 | . 17 48 Melee . | . . . Projectile . | . . . AOE 65 | . 17 48 Terrain Rammed . | . . . Walls Destroyed . | . . . Machines Disabled . | . . . Actions | -11 -10 -10 --------- Run | Scr Mat Min Total 747 | 4 253 490 Wait 28 | . 1 27 Move 602 | . 215 387 Hop . | . . . Pick Up 11 | . 7 4 Fast Attach 6 | . 2 4 Attach 6 | . . 6 Detach 3 | . 1 2 Swap 21 | 4 7 10 Drop 11 | . 8 3 Fire 59 | . 12 47 Melee . | . . . Ram . | . . . Kick . | . . . Crush . | . . . Escape Stasis . | . . . Rewire . | . . . Trap . | . . . Miscellaneous . | . . . Route ------- -11/Scrapyard -10/Materials (discovered 2 exits: *Min x2) -10/Mines History --------- Turn | Location | Event 7 | -11/Scrapyard | Discovered new exit (range 0) 7 | -11/Scrapyard | Entered Materials 7 | -10/Materials | Discovered new exit (range 8) 64 | -10/Materials | Identified exit to Mines 150 | -10/Materials | Discovered exit to Mines (range 15) 295 | -10/Materials | Entered Mines 309 | -10/Mines | Build established: Mutant 618 | -10/Mines | Core integrity fell below 50% 657 | -10/Mines | Lost 6 parts (1p2n3w) 939 | -10/Mines | Assembled infested the area 944 | -10/Mines | Assisted by a Guerilla fighting off Assembled 945 | -10/Mines | Core integrity fell below 20% 961 | -10/Mines | Destroyed by as-68529 with Assembled Blade Last Messages --------------- 00916_ U-05 Engineer lays Concrete. 00918_ U-05 Engineer builds a Wall. 00920_ Acquired 26 matter. 00920_ U-05 Engineer builds a Wall. 00922_ Acquired 28 matter. 00923_ U-05 Engineer lays Concrete. 00924_ U-05 Engineer builds a Wall. 00928_ U-05 Engineer lays Concrete. 00937_ U-05 Engineer builds a Wall. 00939_ ALERT: Infestation in the mines, dispatching Demolisher response squad. 00942_ FV-12F(h): "I'll hold them off! Go on ahead or try to find another way!" 00942_ HV Slug penetrates as-42995. 00942_ as-42995 destroyed. 00944_ A derelict emerges from the shadows: "You need to get out of here! I've been tracking a group of Assembled to figure out where they're coming from, and they're closing on this area, come on!" 00947_ as-21698 suffers critical hit. 00947_ as-21698 destroyed. Map ----- +----------------------------------------------------+ | #?## #????????????## ### ## # | | #??## #?????######### ### ####### # | | ????# ##?????# #### ##?????## # | | ???## ##??????# ##?## ##????????## ## | | ??## ######### ## #??# #???????????####? | | ??# ## #### #???????????????? | | ??# ### #???????????????? | | ??# ############?## #???????????????? | | ### ##????????????## ########???????????????? | | ## ##????????????# #??????????????????????? | | = #######??????# ??????????????????????? | | = ! #??????# ?????????????????????? | | # #### #??????######????????????????????? | | # #??## ##### #????????????????????????????????? | | # #???####???# #????????????????????????????????? | | #?????????## #????????????????????????????????? | | # #????????## #?######?????????????????????????? | | # ##??????## ### #####?????????????????????? | | ##??#### ?????????????????????? | | #??# r #?????????????????????????? | | ##?# ##???????????? #??????????? | | ###### ########## #???????????? | | #???## #???????????? | | #????## #??????????? | | ## ##?????## a ######???????????????? | | ??####???????## ## = a@ ##????????????????????? | | ??????????????####### ## ##?????????????????????? | | ???????????????????##= ## ?????????????????????? | | ???????????????????##% ## ???????????????????? | | ???????????????????##= ####### ?????????????????? | | ???????????????????## ##??????# ????????????????? | | ????????????????????# ###???????????????????????? | | ???????????????????## ##??????????????????????? | | ???????????????????# ##?????????????????????? | | ???????????????????# ##????????????????????? | | ???????????????????## ###??????????????????? | | ????????????????????# ##?????????????????? | | ???????????????????## ##?????#??????????? | | ??????????????????## ## ##?????????? | | ??????????????????# #?????????? | | ?????????????????# % #????????? | | ?????????????????# #???????? | | ?????????????????## ## #???????? | | ??????????????????########### % ???????? | | ?????????????????????????????# ???????? | | ?????????????????????????????? ## ????????? | | ??????????????????????????????? #???????????? | | ??????????????????????????????? ##???????????? | | ???????????????????????????????? ##????????????? | | ????????????????????????????????? ##?????????????? | +----------------------------------------------------+ Best States ------------- Heat Dissipation 25 Energy Generation 14 Energy Capacity 265 Matter Stores 300 Matter Capacity 300 Sight Range 16 Terrain Scan Density 10 Armor Coverage 150 Evasion (%) 40 Recoil Reduction 2 Item Schematics ----------------- None Robot Schematics ------------------ None Fabricated ------------ Nothing Alien Tech Used ----------------- None Achievements -------------- None Challenges ------------ None Game ------ Seed FlakTerrainScythe Manual? 0 Play Time 00:17:42 Cumulative 26.8 hours Start 2021.04.03 @ 04:53:55 End 2021.04.03 @ 05:09:24 Sessions 1 Manual Loads 0 Difficulty Rogue Special Mode None Game No. 23 Rogue 23 Adventurer 0 Explorer 0 Win Type - Total 0 Types 0/0/0/0/0/0/0/0/0 Lore% 24 Gallery% 24 Achievement% 21 Wizard Run 0 Options --------- ASCII 1 Keyboard 1 Movement Numpad Keybinds 0 Fullscreen 1 Font 18/Terminus Map View 76x50 Tactical HUD 1 Map Filters NONE Filters NONE Steam 1 RUN: be4f51c7-52a8-429d-9016-f20e6fd96169